[Event "Elite Hotels Open 2023"]
[Site "Elite Stadshotellet, Kungsgatan 6, Vaxjo, Sweden"]
[Date "2023.02.12"]
[Round "8.2"]
[White "Trost, Edvin"]
[Black "Sivuk, Vitaly"]
[Result "1/2-1/2"]
[TimeControl "15 minutes + 5 seconds per move from move one (Round 1 - 4) / 90 minutes + 30 seconds per move from move one (Round 5 - 8)"]
[WhiteTitle "FM"]
[BlackTitle "GM"]
[WhiteFideId "1729519"]
[BlackFideId "14116502"]
[WhiteElo "2364"]
[BlackElo "2530"]

1. d4 {[%clk 01:30:57]} {[%emt 00:00:03]} Nf6 {[%clk 01:30:48]} {[%emt
00:00:12]} 2. c4 {[%clk 01:31:22]} {[%emt 00:00:06]} e6 {[%clk 01:29:05]}
{[%emt 00:02:12]} 3. Nf3 {[%clk 01:31:35]} {[%emt 00:00:18]} d5 {[%clk
01:29:17]} {[%emt 00:00:17]} 4. g3 {[%clk 01:31:58]} {[%emt 00:00:08]} Be7
{[%clk 01:28:40]} {[%emt 00:01:06]} 5. Bg2 {[%clk 01:32:21]} {[%emt 00:00:07]}
O-O {[%clk 01:29:01]} {[%emt 00:00:08]} 6. Nc3 {[%clk 01:31:31]} {[%emt
00:01:22]} Nbd7 {[%clk 01:27:50]} {[%emt 00:01:40]} 7. Qd3 {[%clk 01:31:31]}
{[%emt 00:00:31]} c5 {[%clk 01:26:49]} {[%emt 00:01:30]} 8. cxd5 {[%clk
01:29:26]} {[%emt 00:02:36]} Nxd5 {[%clk 01:23:58]} {[%emt 00:03:21]} 9. O-O
{[%clk 01:23:44]} {[%emt 00:06:12]} b6 {[%clk 01:21:21]} {[%emt 00:03:07]} 10.
b3 {[%clk 01:10:40]} {[%emt 00:13:34]} Bb7 {[%clk 01:19:34]} {[%emt 00:02:16]}
11. Bb2 {[%clk 01:10:44]} {[%emt 00:00:27]} N7f6 {[%clk 01:12:44]} {[%emt
00:07:19]} 12. Rfd1 {[%clk 01:04:49]} {[%emt 00:06:26]} Rc8 {[%clk 01:10:10]}
{[%emt 00:03:03]} 13. Rac1 {[%clk 00:55:10]} 1/2-1/2

[Event "Elite Hotels Open 2023"]
[Site "Elite Stadshotellet, Kungsgatan 6, Vaxjo, Sweden"]
[Date "2023.02.12"]
[Round "8.3"]
[White "Abdrlauf, Elham"]
[Black "Golubka, Petro"]
[Result "1-0"]
[TimeControl "15 minutes + 5 seconds per move from move one (Round 1 - 4) / 90 minutes + 30 seconds per move from move one (Round 5 - 8)"]
[WhiteTitle "IM"]
[BlackTitle "GM"]
[WhiteFideId "1533533"]
[BlackFideId "14114224"]
[WhiteElo "2527"]
[BlackElo "2363"]

1. e4 {[%clk 01:31:00]} {[%emt 00:31:28]} c5 {[%clk 01:25:45]} {[%emt
00:05:16]} 2. Nf3 {[%clk 01:31:22]} {[%emt 00:00:07]} Nc6 {[%clk 01:26:12]}
{[%emt 00:00:04]} 3. c3 {[%clk 01:29:25]} {[%emt 00:02:26]} e5 {[%clk
01:26:14]} {[%emt 00:00:29]} 4. d4 {[%clk 01:28:15]} {[%emt 00:01:39]} cxd4
{[%clk 01:26:26]} {[%emt 00:00:18]} 5. cxd4 {[%clk 01:28:40]} {[%emt 00:00:05]}
exd4 {[%clk 01:26:32]} {[%emt 00:00:23]} 6. Nxd4 {[%clk 01:27:17]} {[%emt
00:01:55]} Nf6 {[%clk 01:26:50]} {[%emt 00:00:12]} 7. Nc3 {[%clk 01:19:11]}
{[%emt 00:08:35]} Bb4 {[%clk 01:26:48]} {[%emt 00:00:29]} 8. Nxc6 {[%clk
01:04:06]} {[%emt 00:15:38]} bxc6 {[%clk 01:25:25]} {[%emt 00:01:54]} 9. Bd3
{[%clk 01:03:46]} {[%emt 00:00:49]} d5 {[%clk 01:24:11]} {[%emt 00:01:44]} 10.
e5 {[%clk 00:48:35]} {[%emt 00:15:41]} Ng4 {[%clk 01:23:30]} {[%emt 00:01:12]}
11. O-O {[%clk 00:48:44]} {[%emt 00:00:20]} O-O {[%clk 01:21:15]} {[%emt
00:02:45]} 12. Qc2 {[%clk 00:37:49]} {[%emt 00:11:25]} Nxe5 {[%clk 01:08:25]}
{[%emt 00:13:21]} 13. Bxh7+ {[%clk 00:37:33]} {[%emt 00:00:46]} Kh8 {[%clk
01:08:49]} {[%emt 00:00:05]} 14. Bf5 {[%clk 00:31:53]} {[%emt 00:06:11]} Qf6
{[%clk 01:07:59]} {[%emt 00:01:19]} 15. Bxc8 {[%clk 00:32:17]} {[%emt
00:00:06]} Rfxc8 {[%clk 01:05:40]} {[%emt 00:02:49]} 16. Be3 {[%clk 00:24:02]}
{[%emt 00:08:46]} Nc4 {[%clk 00:57:05]} {[%emt 00:09:05]} 17. Rad1 {[%clk
00:23:55]} {[%emt 00:00:37]} Bd6 {[%clk 00:38:56]} {[%emt 00:18:40]} 18. Bc1
{[%clk 00:20:24]} {[%emt 00:04:01]} Re8 {[%clk 00:38:26]} {[%emt 00:00:59]} 19.
Rd3 {[%clk 00:20:24]} {[%emt 00:00:30]} Kg8 {[%clk 00:38:38]} {[%emt 00:00:18]}
20. Rh3 {[%clk 00:17:45]} {[%emt 00:03:08]} Qg6 {[%clk 00:35:20]} {[%emt
00:03:48]} 21. Qxg6 {[%clk 00:17:48]} {[%emt 00:00:26]} fxg6 {[%clk 00:35:48]}
{[%emt 00:00:03]} 22. Rd1 {[%clk 00:16:32]} {[%emt 00:01:46]} d4 {[%clk
00:33:28]} {[%emt 00:02:50]} 23. Kf1 {[%clk 00:14:49]} {[%emt 00:02:13]} c5
{[%clk 00:31:48]} {[%emt 00:02:10]} 24. Nb5 {[%clk 00:08:50]} {[%emt 00:06:27]}
Be5 {[%clk 00:30:27]} {[%emt 00:01:53]} 25. b3 {[%clk 00:08:13]} {[%emt
00:01:06]} Nb6 {[%clk 00:30:21]} {[%emt 00:00:36]} 26. Na3 {[%clk 00:07:41]}
{[%emt 00:01:02]} a5 {[%clk 00:29:05]} {[%emt 00:01:47]} 27. Nc4 {[%clk
00:06:56]} {[%emt 00:01:16]} Nxc4 {[%clk 00:27:24]} {[%emt 00:02:10]} 28. bxc4
{[%clk 00:07:25]} {[%emt 00:00:01]} a4 {[%clk 00:27:21]} {[%emt 00:00:32]} 29.
Rhd3 {[%clk 00:06:52]} {[%emt 00:01:04]} Rab8 {[%clk 00:23:22]} {[%emt
00:04:29]} 30. Ba3 {[%clk 00:07:20]} {[%emt 00:00:02]} Bd6 {[%clk 00:23:27]}
{[%emt 00:00:22]} 31. h3 {[%clk 00:06:32]} {[%emt 00:01:20]} Rb7 {[%clk
00:20:16]} {[%emt 00:03:40]} 32. R3d2 {[%clk 00:05:27]} {[%emt 00:01:37]} Kf7
{[%clk 00:17:51]} {[%emt 00:02:52]} 33. Re2 {[%clk 00:05:36]} {[%emt 00:00:24]}
Reb8 {[%clk 00:15:52]} {[%emt 00:02:28]} 34. Ree1 {[%clk 00:05:36]} {[%emt
00:00:29]} Re7 {[%clk 00:14:18]} {[%emt 00:02:03]} 35. Rxe7+ {[%clk 00:06:02]}
{[%emt 00:00:06]} Kxe7 {[%clk 00:14:41]} {[%emt 00:00:07]} 36. Ke2 {[%clk
00:06:25]} {[%emt 00:00:07]} Kd7 {[%clk 00:14:57]} {[%emt 00:00:14]} 37. Re1
{[%clk 00:02:39]} {[%emt 00:04:16]} g5 {[%clk 00:10:55]} {[%emt 00:04:31]} 38.
Kd3 {[%clk 00:02:48]} {[%emt 00:00:21]} Rf8 {[%clk 00:10:54]} {[%emt 00:00:32]}
39. Re2 {[%clk 00:02:35]} {[%emt 00:00:43]} g6 {[%clk 00:08:08]} {[%emt
00:03:16]} 40. Bc1 {[%clk 00:01:13]} {[%emt 00:01:52]} Bf4 {[%clk 00:07:41]}
{[%emt 00:00:57]} 41. Ba3 {[%clk 00:00:37]} {[%emt 00:01:06]} Bd6 {[%clk
00:08:08]} {[%emt 00:00:02]} 42. f3 {[%clk 00:00:39]} {[%emt 00:00:29]} Rf7
{[%clk 00:05:55]} {[%emt 00:02:44]} 43. Bc1 {[%clk 00:00:41]} {[%emt 00:00:27]}
Bf4 {[%clk 00:06:01]} {[%emt 00:00:24]} 44. Ba3 {[%clk 00:00:48]} {[%emt
00:00:23]} Bd6 {[%clk 00:06:30]} {[%emt 00:00:01]} 45. Rb2 {[%clk 00:00:35]}
{[%emt 00:00:44]} Kc6 {[%clk 00:06:01]} {[%emt 00:00:58]} 46. Re2 {[%clk
00:00:32]} {[%emt 00:00:33]} Kd7 {[%clk 00:05:20]} {[%emt 00:01:13]} 47. Re4
{[%clk 00:00:39]} {[%emt 00:00:21]} Rf5 {[%clk 00:05:32]} {[%emt 00:00:18]} 48.
Bc1 {[%clk 00:00:41]} {[%emt 00:00:28]} Bf4 {[%clk 00:05:43]} {[%emt 00:00:20]}
49. g4 {[%clk 00:00:44]} {[%emt 00:00:26]} Rf6 {[%clk 00:04:56]} {[%emt
00:01:14]} 50. Bxf4 {[%clk 00:01:09]} {[%emt 00:00:08]} gxf4 {[%clk 00:05:23]}
{[%emt 00:00:03]} 51. Re5 {[%clk 00:01:31]} {[%emt 00:00:08]} Kd6 {[%clk
00:05:07]} {[%emt 00:00:47]} 52. Ke4 {[%clk 00:01:36]} {[%emt 00:00:25]} Kc6
{[%clk 00:04:24]} {[%emt 00:01:13]} 53. h4 {[%clk 00:01:17]} {[%emt 00:00:50]}
a3 {[%clk 00:04:12]} {[%emt 00:00:41]} 54. g5 {[%clk 00:00:36]} {[%emt
00:01:10]} Rd6 {[%clk 00:04:24]} {[%emt 00:00:19]} 55. Kd3 {[%clk 00:00:39]}
{[%emt 00:00:27]} Kb6 {[%clk 00:04:10]} {[%emt 00:00:44]} 56. Re4 {[%clk
00:00:32]} {[%emt 00:00:37]} Ka5 {[%clk 00:04:22]} {[%emt 00:00:19]} 57. Rxf4
{[%clk 00:00:35]} {[%emt 00:00:26]} Rb6 {[%clk 00:04:30]} {[%emt 00:00:21]} 58.
Rf6 {[%clk 00:00:36]} {[%emt 00:00:28]} Rb2 {[%clk 00:04:34]} {[%emt 00:00:28]}
59. Rxg6 {[%clk 00:00:53]} {[%emt 00:00:13]} Rxa2 {[%clk 00:04:54]} {[%emt
00:00:10]} 60. Rc6 {[%clk 00:00:32]} {[%emt 00:00:49]} Kb4 {[%clk 00:04:47]}
{[%emt 00:00:38]} 61. Rb6+ {[%clk 00:01:00]} {[%emt 00:00:02]} Ka4 {[%clk
00:05:05]} {[%emt 00:00:12]} 62. g6 {[%clk 00:00:37]} {[%emt 00:00:54]} Rh2
{[%clk 00:02:51]} {[%emt 00:02:43]} 63. g7 {[%clk 00:00:45]} {[%emt 00:00:22]}
Rg2 {[%clk 00:03:19]} {[%emt 00:00:02]} 64. Rb7 {[%clk 00:01:11]} {[%emt
00:00:04]} a2 {[%clk 00:03:42]} {[%emt 00:00:07]} 65. h5 {[%clk 00:01:12]}
{[%emt 00:00:29]} a1=Q {[%clk 00:02:45]} {[%emt 00:01:28]} 66. Ra7+ {[%clk
00:01:39]} {[%emt 00:00:02]} Kb4 {[%clk 00:03:00]} {[%emt 00:00:14]} 67. Rxa1
{[%clk 00:02:05]} {[%emt 00:00:05]} Rxg7 {[%clk 00:03:29]} 68. Rb1+ {[%clk
00:02:27]} {[%emt 00:00:07]} Ka4 {[%clk 00:03:55]} {[%emt 00:00:04]} 69. Rh1
{[%clk 00:02:33]} {[%emt 00:00:24]} Rg3 {[%clk 00:01:26]} {[%emt 00:03:00]} 70.
Ke4 {[%clk 00:02:58]} {[%emt 00:00:06]} Rg7 {[%clk 00:01:40]} {[%emt 00:00:14]}
71. h6 {[%clk 00:03:22]} {[%emt 00:00:06]} Re7 {[%clk 00:02:07]} {[%emt
00:00:04]} 72. Kd3 {[%clk 00:03:46]} {[%emt 00:00:06]} Rh7 {[%clk 00:02:29]}
{[%emt 00:00:07]} 73. f4 {[%clk 00:04:11]} {[%emt 00:00:05]} Ka5 {[%clk
00:02:47]} {[%emt 00:00:13]} 74. f5 {[%clk 00:04:37]} {[%emt 00:00:05]} Kb6
{[%clk 00:03:14]} {[%emt 00:00:02]} 75. f6 {[%clk 00:05:02]} {[%emt 00:00:04]}
1-0

[Event "Elite Hotels Open 2023"]
[Site "Elite Stadshotellet, Kungsgatan 6, Vaxjo, Sweden"]
[Date "2023.02.12"]
[Round "8.4"]
[White "Blomqvist, Erik"]
[Black "Bellon Lopez, Juan Manuel"]
[Result "1-0"]
[TimeControl "15 minutes + 5 seconds per move from move one (Round 1 - 4) / 90 minutes + 30 seconds per move from move one (Round 5 - 8)"]
[WhiteTitle "GM"]
[BlackTitle "GM"]
[WhiteFideId "1709437"]
[BlackFideId "2200031"]
[WhiteElo "2510"]
[BlackElo "2303"]

1. e4 {[%clk 01:30:55]} {[%emt 00:00:04]} c5 {[%clk 01:30:53]} {[%emt
00:00:08]} 2. Nf3 {[%clk 01:31:18]} {[%emt 00:00:07]} g6 {[%clk 01:31:15]}
{[%emt 00:00:09]} 3. d4 {[%clk 01:28:56]} {[%emt 00:02:52]} cxd4 {[%clk
01:31:17]} {[%emt 00:00:28]} 4. Nxd4 {[%clk 01:29:18]} {[%emt 00:00:07]} Nc6
{[%clk 01:30:43]} {[%emt 00:01:04]} 5. c4 {[%clk 01:29:42]} {[%emt 00:00:06]}
Nf6 {[%clk 01:28:24]} {[%emt 00:02:49]} 6. Nc3 {[%clk 01:30:03]} {[%emt
00:00:08]} d6 {[%clk 01:27:45]} {[%emt 00:01:10]} 7. f3 {[%clk 01:27:57]}
{[%emt 00:02:35]} Nxd4 {[%clk 01:27:07]} {[%emt 00:01:08]} 8. Qxd4 {[%clk
01:28:21]} {[%emt 00:00:07]} Bg7 {[%clk 01:27:35]} {[%emt 00:00:03]} 9. Be3
{[%clk 01:28:38]} {[%emt 00:00:12]} O-O {[%clk 01:26:17]} {[%emt 00:01:48]} 10.
Qd2 {[%clk 01:28:53]} {[%emt 00:00:14]} Be6 {[%clk 01:21:10]} {[%emt 00:05:38]}
11. Rc1 {[%clk 01:27:24]} {[%emt 00:01:59]} Nd7 {[%clk 01:21:13]} {[%emt
00:00:27]} 12. Be2 {[%clk 01:19:30]} {[%emt 00:08:24]} Rc8 {[%clk 01:15:36]}
{[%emt 00:06:07]} 13. Nb5 {[%clk 01:15:59]} {[%emt 00:04:01]} Ne5 {[%clk
01:11:58]} {[%emt 00:04:08]} 14. b3 {[%clk 01:14:10]} {[%emt 00:02:19]} Nc6
{[%clk 01:06:58]} {[%emt 00:05:30]} 15. O-O {[%clk 01:13:34]} {[%emt 00:01:06]}
a6 {[%clk 01:03:28]} {[%emt 00:04:00]} 16. Nc3 {[%clk 01:13:59]} {[%emt
00:00:06]} Qa5 {[%clk 01:03:14]} {[%emt 00:00:43]} 17. Rfd1 {[%clk 01:13:32]}
{[%emt 00:00:56]} f5 {[%clk 01:00:41]} {[%emt 00:03:04]} 18. exf5 {[%clk
01:13:39]} {[%emt 00:00:24]} Rxf5 {[%clk 00:58:04]} {[%emt 00:03:06]} 19. f4
{[%clk 01:12:23]} {[%emt 00:01:46]} Rff8 {[%clk 00:56:31]} {[%emt 00:02:04]} 20.
Bf3 {[%clk 01:11:36]} {[%emt 00:01:16]} Kh8 {[%clk 00:55:07]} {[%emt 00:01:54]}
21. Bxc6 {[%clk 00:58:27]} {[%emt 00:13:40]} Rxc6 {[%clk 00:52:02]} {[%emt
00:03:35]} 22. Bd4 {[%clk 00:55:44]} {[%emt 00:03:12]} Bg4 {[%clk 00:46:16]}
{[%emt 00:06:16]} 23. Rf1 {[%clk 00:47:52]} {[%emt 00:08:22]} e5 {[%clk
00:34:50]} {[%emt 00:11:57]} 24. fxe5 {[%clk 00:48:14]} {[%emt 00:00:07]} dxe5
{[%clk 00:33:22]} {[%emt 00:01:58]} 25. Rxf8+ {[%clk 00:39:37]} {[%emt
00:09:07]} Bxf8 {[%clk 00:32:22]} {[%emt 00:01:30]} 26. Be3 {[%clk 00:39:13]}
{[%emt 00:00:53]} Rf6 {[%clk 00:24:37]} {[%emt 00:08:16]} 27. h3 {[%clk
00:30:10]} {[%emt 00:09:33]} Bf5 {[%clk 00:22:37]} {[%emt 00:02:30]} 28. Qf2
{[%clk 00:28:32]} {[%emt 00:02:09]} Ba3 {[%clk 00:18:30]} {[%emt 00:04:36]} 29.
Nd5 {[%clk 00:24:43]} {[%emt 00:04:19]} Bxc1 {[%clk 00:18:43]} {[%emt
00:00:18]} 30. Nxf6 {[%clk 00:23:46]} {[%emt 00:01:27]} Qc3 {[%clk 00:17:35]}
{[%emt 00:01:37]} 31. Nd5 {[%clk 00:23:48]} {[%emt 00:00:28]} Bxe3 {[%clk
00:16:49]} {[%emt 00:01:17]} 32. Nxe3 {[%clk 00:19:50]} {[%emt 00:04:27]} Qd4
{[%clk 00:12:22]} 1-0

[Event "Elite Hotels Open 2023"]
[Site "Elite Stadshotellet, Kungsgatan 6, Vaxjo, Sweden"]
[Date "2023.02.12"]
[Round "8.5"]
[White "Jepson, Christian"]
[Black "Kucuksari, Kaan"]
[Result "1/2-1/2"]
[TimeControl "15 minutes + 5 seconds per move from move one (Round 1 - 4) / 90 minutes + 30 seconds per move from move one (Round 5 - 8)"]
[WhiteTitle "IM"]
[BlackTitle "IM"]
[WhiteFideId "1701185"]
[BlackFideId "6380166"]
[WhiteElo "2395"]
[BlackElo "2507"]

1. Nf3 {[%clk 01:25:13]} {[%emt 00:05:46]} f5 {[%clk 01:29:20]} {[%emt
00:01:42]} 2. d3 {[%clk 01:24:51]} {[%emt 00:00:52]} Nc6 {[%clk 01:29:19]}
{[%emt 00:00:31]} 3. e4 {[%clk 01:24:10]} {[%emt 00:01:11]} e5 {[%clk
01:29:43]} {[%emt 00:00:06]} 4. d4 {[%clk 01:22:03]} {[%emt 00:02:36]} fxe4
{[%clk 01:21:33]} {[%emt 00:08:40]} 5. Nxe5 {[%clk 01:22:04]} {[%emt 00:00:29]}
Nf6 {[%clk 01:21:36]} {[%emt 00:00:28]} 6. Be2 {[%clk 01:20:13]} {[%emt
00:02:22]} d5 {[%clk 01:18:46]} {[%emt 00:03:18]} 7. c4 {[%clk 01:11:31]}
{[%emt 00:09:12]} Bd6 {[%clk 01:19:04]} {[%emt 00:00:12]} 8. Nxc6 {[%clk
01:09:43]} {[%emt 00:02:18]} bxc6 {[%clk 01:19:32]} {[%emt 00:00:02]} 9. Nc3
{[%clk 01:09:40]} {[%emt 00:00:33]} O-O {[%clk 01:17:00]} {[%emt 00:03:02]} 10.
Be3 {[%clk 01:08:44]} {[%emt 00:01:26]} Be6 {[%clk 01:15:41]} {[%emt 00:01:49]}
11. c5 {[%clk 01:07:23]} {[%emt 00:01:50]} Be7 {[%clk 01:16:10]} {[%emt
00:00:02]} 12. h3 {[%clk 01:05:04]} {[%emt 00:02:49]} a5 {[%clk 01:13:42]}
{[%emt 00:02:58]} 13. Qd2 {[%clk 01:01:33]} {[%emt 00:04:01]} Qd7 {[%clk
01:13:08]} {[%emt 00:01:04]} 14. b3 {[%clk 00:54:44]} {[%emt 00:07:19]} Ne8
{[%clk 00:57:06]} {[%emt 00:16:32]} 15. O-O-O {[%clk 00:51:22]} {[%emt
00:03:52]} g6 {[%clk 00:55:32]} {[%emt 00:02:04]} 16. Rdf1 {[%clk 00:42:42]}
{[%emt 00:09:09]} Ng7 {[%clk 00:55:47]} {[%emt 00:00:15]} 17. g4 {[%clk
00:42:44]} {[%emt 00:00:27]} Rf7 {[%clk 00:51:11]} {[%emt 00:05:07]} 18. f4
{[%clk 00:40:39]} {[%emt 00:02:35]} exf3 {[%clk 00:48:46]} {[%emt 00:02:55]} 19.
Rxf3 {[%clk 00:41:04]} {[%emt 00:00:05]} Rxf3 {[%clk 00:48:04]} {[%emt
00:01:11]} 20. Bxf3 {[%clk 00:41:30]} {[%emt 00:00:04]} Rf8 {[%clk 00:48:25]}
{[%emt 00:00:09]} 21. Bd1 {[%clk 00:38:34]} {[%emt 00:03:27]} Bh4 {[%clk
00:45:14]} {[%emt 00:03:41]} 22. Ne2 {[%clk 00:26:40]} {[%emt 00:12:23]} Qe7
{[%clk 00:43:44]} {[%emt 00:02:01]} 23. Nf4 {[%clk 00:26:21]} {[%emt 00:00:48]}
Bc8 {[%clk 00:30:52]} {[%emt 00:13:22]} 24. Ng2 {[%clk 00:22:14]} {[%emt
00:04:37]} Bg3 {[%clk 00:30:43]} {[%emt 00:00:40]} 25. Qxa5 {[%clk 00:20:58]}
{[%emt 00:01:47]} Qe4 {[%clk 00:28:23]} {[%emt 00:02:49]} 26. Qd2 {[%clk
00:20:37]} {[%emt 00:00:50]} Bf2 {[%clk 00:27:09]} {[%emt 00:01:45]} 27. Rf1
{[%clk 00:19:23]} {[%emt 00:01:44]} Qxg2 {[%clk 00:27:02]} {[%emt 00:00:37]} 28.
Rxf2 {[%clk 00:19:47]} {[%emt 00:00:05]} Rxf2 {[%clk 00:26:14]} {[%emt
00:01:18]} 29. Qxf2 {[%clk 00:15:12]} {[%emt 00:05:05]} Qxh3 {[%clk 00:26:43]}
{[%emt 00:00:02]} 30. Qf3 {[%clk 00:13:50]} {[%emt 00:01:52]} Bxg4 {[%clk
00:24:59]} {[%emt 00:02:15]} 31. Qxh3 {[%clk 00:08:01]} {[%emt 00:06:18]} Bxh3
{[%clk 00:25:11]} {[%emt 00:00:18]} 32. a4 {[%clk 00:08:13]} {[%emt 00:00:18]}
Bf1 {[%clk 00:18:49]} {[%emt 00:06:51]} 33. Bg4 {[%clk 00:06:30]} {[%emt
00:02:13]} Nf5 {[%clk 00:16:11]} {[%emt 00:03:09]} 34. Bxf5 {[%clk 00:05:41]}
{[%emt 00:01:19]} gxf5 {[%clk 00:16:39]} {[%emt 00:00:02]} 35. Bf4 {[%clk
00:06:00]} {[%emt 00:00:10]} Kf7 {[%clk 00:16:43]} {[%emt 00:00:26]} 36. Kd2
{[%clk 00:06:21]} {[%emt 00:00:09]} Ke6 {[%clk 00:11:09]} {[%emt 00:06:05]} 37.
Bxc7 {[%clk 00:06:27]} {[%emt 00:00:24]} Kd7 {[%clk 00:11:17]} {[%emt
00:00:21]} 1/2-1/2

[Event "Elite Hotels Open 2023"]
[Site "Elite Stadshotellet, Kungsgatan 6, Vaxjo, Sweden"]
[Date "2023.02.12"]
[Round "8.6"]
[White "Hector, Jonny"]
[Black "Rasti, Arvin"]
[Result "1/2-1/2"]
[TimeControl "15 minutes + 5 seconds per move from move one (Round 1 - 4) / 90 minutes + 30 seconds per move from move one (Round 5 - 8)"]
[WhiteTitle "GM"]
[WhiteFideId "1700090"]
[BlackFideId "1741160"]
[WhiteElo "2466"]
[BlackElo "2211"]

1. e4 {[%clk 01:30:55]} {[%emt 00:00:04]} c6 {[%clk 01:30:45]} {[%emt
00:00:17]} 2. d4 {[%clk 01:31:13]} {[%emt 00:00:11]} d5 {[%clk 01:31:10]}
{[%emt 00:00:06]} 3. Nd2 {[%clk 01:31:33]} {[%emt 00:00:08]} dxe4 {[%clk
01:31:33]} {[%emt 00:00:08]} 4. Nxe4 {[%clk 01:31:56]} {[%emt 00:00:06]} Nf6
{[%clk 01:31:57]} {[%emt 00:00:05]} 5. Nxf6+ {[%clk 01:31:37]} {[%emt
00:00:50]} exf6 {[%clk 01:32:26]} {[%emt 00:00:02]} 6. Be3 {[%clk 01:31:42]}
{[%emt 00:00:24]} Bd6 {[%clk 01:32:27]} {[%emt 00:00:28]} 7. Bd3 {[%clk
01:31:38]} {[%emt 00:00:34]} O-O {[%clk 01:32:08]} {[%emt 00:00:50]} 8. Ne2
{[%clk 01:31:42]} {[%emt 00:00:24]} Re8 {[%clk 01:30:13]} {[%emt 00:02:26]} 9.
c4 {[%clk 01:30:11]} {[%emt 00:02:01]} Nd7 {[%clk 01:26:28]} {[%emt 00:04:16]}
10. O-O {[%clk 01:28:59]} {[%emt 00:01:40]} Nf8 {[%clk 01:25:02]} {[%emt
00:01:57]} 11. Qd2 {[%clk 01:24:23]} {[%emt 00:05:06]} Ng6 {[%clk 01:23:44]}
{[%emt 00:01:48]} 12. Rad1 {[%clk 01:20:40]} {[%emt 00:04:12]} Qc7 {[%clk
01:20:56]} {[%emt 00:03:19]} 13. h3 {[%clk 01:18:42]} {[%emt 00:02:27]} f5
{[%clk 01:11:13]} {[%emt 00:10:15]} 14. f4 {[%clk 01:05:41]} {[%emt 00:13:30]}
Qe7 {[%clk 01:09:06]} {[%emt 00:02:38]} 15. Rf3 {[%clk 01:04:26]} {[%emt
00:01:44]} Be6 {[%clk 01:03:31]} {[%emt 00:06:04]} 16. a3 {[%clk 01:02:43]}
{[%emt 00:02:14]} b5 {[%clk 00:55:30]} {[%emt 00:08:32]} 17. d5 {[%clk
00:57:01]} {[%emt 00:06:11]} bxc4 {[%clk 00:53:55]} {[%emt 00:02:06]} 18. dxe6
{[%clk 00:56:00]} {[%emt 00:01:29]} cxd3 {[%clk 00:54:23]} {[%emt 00:00:03]} 19.
exf7+ {[%clk 00:49:01]} {[%emt 00:07:29]} Qxf7 {[%clk 00:53:43]} {[%emt
00:01:09]} 20. Qxd3 {[%clk 00:49:07]} {[%emt 00:00:25]} Rad8 {[%clk 00:53:35]}
{[%emt 00:00:38]} 21. Qc2 {[%clk 00:48:36]} {[%emt 00:01:00]} c5 {[%clk
00:47:09]} {[%emt 00:06:58]} 22. Nc3 {[%clk 00:41:35]} {[%emt 00:07:29]} c4
{[%clk 00:38:32]} {[%emt 00:09:08]} 23. Qf2 {[%clk 00:34:02]} {[%emt 00:08:02]}
Bb8 {[%clk 00:37:26]} {[%emt 00:01:36]} 24. h4 {[%clk 00:30:39]} {[%emt
00:03:54]} Nf8 {[%clk 00:33:12]} {[%emt 00:04:44]} 25. Qf1 {[%clk 00:24:45]}
{[%emt 00:06:23]} h6 {[%clk 00:31:18]} {[%emt 00:02:25]} 26. Bd4 {[%clk
00:23:53]} {[%emt 00:01:22]} Ne6 {[%clk 00:28:38]} {[%emt 00:03:10]} 27. Qxc4
{[%clk 00:23:20]} {[%emt 00:01:04]} Nxf4 {[%clk 00:28:00]} {[%emt 00:01:09]} 28.
Qxf7+ Kxf7 {[%clk 00:28:28]} 29. g3 {[%clk 00:17:56]} Ne2+ {[%clk 00:25:22]}
{[%emt 00:09:14]} 30. Nxe2 {[%clk 00:18:24]} Rxe2 {[%clk 00:25:43]} {[%emt
00:00:12]} 31. Rxf5+ {[%clk 00:16:43]} Kg6 {[%clk 00:26:08]} {[%emt 00:02:16]}
32. Rf2 {[%clk 00:09:55]} Re4 {[%clk 00:24:56]} {[%emt 00:08:59]} 33. Rfd2
{[%clk 00:10:19]} Rg4 {[%clk 00:22:53]} {[%emt 00:02:39]} 34. Bf2 {[%clk
00:08:31]} Rxd2 {[%clk 00:22:53]} {[%emt 00:02:49]} 35. Rxd2 {[%clk 00:08:59]}
Bxg3 {[%clk 00:23:07]} {[%emt 00:00:18]} 36. Bxg3 {[%clk 00:08:44]} {[%emt
00:00:45]} Rxg3+ {[%clk 00:23:36]} {[%emt 00:00:02]} 37. Kf1 {[%clk 00:07:56]}
{[%emt 00:01:16]} Rh3 {[%clk 00:23:08]} {[%emt 00:00:58]} 38. Rd7 {[%clk
00:06:51]} {[%emt 00:01:35]} Rb3 {[%clk 00:23:22]} {[%emt 00:00:16]} 39. Rxa7
{[%clk 00:05:50]} {[%emt 00:01:31]} Rxb2 {[%clk 00:23:44]} {[%emt 00:00:09]} 40.
h5+ {[%clk 00:06:00]} {[%emt 00:00:18]} Kxh5 {[%clk 00:23:59]} {[%emt
00:00:17]} 41. Rxg7 {[%clk 00:06:21]} {[%emt 00:00:09]} Ra2 {[%clk 00:24:14]}
{[%emt 00:00:15]} 42. Rg3 {[%emt 00:00:42]} 1/2-1/2